fUSD/lending_fUSD_20250804
["ID","MTS","AMOUNT","RATE_DAILY","PERIOD"]
[377232927,1754305921862,-400.0,0.00039178,2]
[377232928,1754305921872,-400.0,0.00039178,2]
[377232929,1754305921881,-802.26,0.00039178,2]
[377232930,1754305921891,-1125.71,0.00039178,2]
[377232931,1754305921903,-770.91,0.00039178,2]
[377232932,1754305921918,-2940.43,0.00039178,2]
[377232933,1754305921928,-8227.11,0.00039178,2]
[377232934,1754305921938,-2047.73,0.00039178,2]
[377232935,1754305921948,-11138.27,0.00039178,2]
[377232936,1754305921958,-458.47,0.00039178,2]
[377232937,1754305921968,-177.2,0.00039178,2]
[377232938,1754305921979,-1728.23,0.00039178,2]
[377232939,1754305921990,-400.0,0.00039178,2]
[377232940,1754305922000,-400.0,0.00039178,2]
[377232941,1754305922011,-2159.66,0.00039178,2]
[377232942,1754305922020,-445.29,0.00039178,2]
[377232943,1754305922031,-1756.78,0.00039178,2]
[377232944,1754305922041,-2736.99,0.00039178,2]
[377232945,1754305922052,-1618.06,0.00039178,2]
[377232946,1754305922063,-581.83,0.00039178,2]
[377232947,1754305922073,-9079.6,0.00039178,2]
[377232948,1754305922083,-893.35,0.00039178,2]
[377232949,1754305922094,-151.0,0.00039178,14]
[377232950,1754305922105,-151.0,0.00039178,14]
[377232951,1754305922115,-1865.31,0.00039178,2]
[377232952,1754305922125,-400.0,0.00039178,2]
[377232953,1754305922136,-1394.73,0.00039178,2]
[377232954,1754305922146,-151.0,0.00039178,14]
[377232955,1754305922156,-997.42,0.00039178,2]
[377232956,1754305922166,-151.0,0.00039178,14]
[377232957,1754305922176,-1087.63,0.00039178,2]
[377232958,1754305922185,-212.419685,0.00039178,14]
[377232959,1754305922195,-400.0,0.00039178,2]
[377232960,1754305922205,-3648.6,0.00039178,2]
[377232961,1754305922215,-400.0,0.00039178,2]
[377232962,1754305922226,-510.65,0.00039178,2]
[377232963,1754305922236,-520.48,0.00039178,2]
[377232964,1754305922246,-1873.61,0.00039178,2]
[377232965,1754305922255,-1200.71,0.00039178,2]
[377232966,1754305922265,-400.0,0.00039178,2]
[377232967,1754305922275,-1629.46,0.00039178,2]
[377232968,1754305922284,-875.07,0.00039178,2]
[377232969,1754305922294,-531.96,0.00039178,2]
[377232970,1754305922304,-1001.01,0.00039178,2]
[377232971,1754305922314,-6021.56,0.00039178,2]
[377232972,1754305922323,-3451.49,0.00039178,2]
[377232973,1754305922333,-688.87,0.00039178,2]
[377232974,1754305922343,-400.0,0.00039178,2]
[377232975,1754305922353,-400.0,0.00039178,2]
[377232976,1754305922362,-1875.95,0.00039178,2]
[377232977,1754305922372,-659.18,0.00039178,2]
[377232978,1754305922382,-905.16,0.00039178,2]
[377232979,1754305922392,-2160.03,0.00039178,2]
[377232980,1754305922402,-618.84,0.00039178,2]
[377232981,1754305922413,-491.69,0.00039178,2]
[377232982,1754305922423,-400.0,0.00039178,2]
[377232983,1754305922433,-476.99,0.00039178,2]
[377232984,1754305922442,-1377.16,0.00039178,2]
[377232985,1754305922452,-727.44,0.00039178,2]
[377232986,1754305922462,-1286.32,0.00039178,2]
[377232987,1754305922473,-400.0,0.00039178,2]
[377232988,1754305922483,-713.76,0.00039178,2]
[377232989,1754305922493,-580.3,0.00039178,2]
[377232990,1754305922502,-1539.83,0.00039178,2]
[377232991,1754305922513,-582.52,0.00039178,2]
[377232992,1754305922523,-400.0,0.00039178,2]
[377232993,1754305922532,-400.0,0.00039178,2]
[377232994,1754305922542,-406.58,0.00039178,2]
[377232995,1754305922553,-1584.46,0.00039178,2]
[377232996,1754305922562,-6316.72,0.00039178,2]
[377232997,1754305922571,-1515.13,0.00039178,2]
[377232998,1754305922582,-3107.23,0.00039178,2]
[377232999,1754305922592,-1891.71,0.00039178,2]
[377233000,1754305922601,-400.0,0.00039178,2]
[377233001,1754305922611,-1032.57,0.00039178,2]
[377233002,1754305922620,-400.0,0.00039178,2]
[377233003,1754305922630,-1732.93,0.00039178,2]
[377233004,1754305922640,-1698.39,0.00039178,2]
[377233005,1754305922649,-1238.95,0.00039178,2]
[377233006,1754305922659,-400.0,0.00039178,2]
[377233007,1754305922669,-400.0,0.00039178,2]
[377233008,1754305922680,-400.0,0.00039178,2]
[377233009,1754305922690,-1178.78,0.00039178,2]
[377233010,1754305922699,-1670.39,0.00039178,2]
[377233011,1754305922709,-1066.08,0.00039178,2]
[377233012,1754305922719,-400.0,0.00039178,2]
[377233013,1754305922729,-942.3,0.00039178,2]
[377233014,1754305922739,-1868.67,0.00039178,2]
[377233015,1754305922749,-2052.93,0.00039178,2]
[377233016,1754305922759,-533.88,0.00039178,2]
[377233017,1754305922768,-1689.09,0.00039178,2]
[377233018,1754305922778,-1644.64,0.00039178,2]
[377233019,1754305922788,-400.0,0.00039178,2]
[377233020,1754305922797,-400.0,0.00039178,2]
[377233021,1754305922808,-1545.77,0.00039178,2]
[377233022,1754305922818,-1572.92,0.00039178,2]
[377233023,1754305922828,-1722.33,0.00039178,2]
[377233024,1754305922837,-1113.34,0.00039178,2]
[377233025,1754305922846,-8388.36,0.00039178,2]
[377233026,1754305922855,-1766.11,0.00039178,2]
[377233027,1754305922864,-1306.14,0.00039178,2]
[377233028,1754305922873,-1596.57,0.00039178,2]
[377233029,1754305922883,-819.3,0.00039178,2]
[377233030,1754305922892,-431.73,0.00039178,2]
[377233031,1754305922901,-400.0,0.00039178,2]
[377233032,1754305922921,-1501.24,0.00039178,2]
[377233033,1754305922930,-1264.88,0.00039178,2]
[377233034,1754305922940,-400.0,0.00039178,2]
[377233035,1754305922949,-1010.21,0.00039178,2]
[377233036,1754305922960,-1156.04,0.00039178,2]
[377233037,1754305922970,-873.38,0.00039178,2]
[377233038,1754305922979,-400.0,0.00039178,2]
[377233039,1754305922990,-1469.78,0.00039178,2]
[377233040,1754305923000,-4195.1,0.00039178,2]
[377233041,1754305923010,-400.0,0.00039178,2]
[377233042,1754305923020,-151.0,0.00039178,14]
[377233043,1754305923030,-260.566952,0.00039178,14]
[377233044,1754305923040,-1925.04,0.00039178,2]
[377233045,1754305923050,-400.0,0.00039178,2]
[377233046,1754305923060,-714.27,0.00039178,2]
[377233047,1754305923070,-1923.74,0.00039178,2]
[377233048,1754305923080,-817.57,0.00039178,2]
[377233049,1754305923090,-400.0,0.00039178,2]
[377233050,1754305923100,-1747.36,0.00039178,2]
[377233051,1754305923110,-1337.16,0.00039178,2]
[377233052,1754305923120,-694.89,0.00039178,2]
[377233053,1754305923130,-1374.38,0.00039178,2]
[377233054,1754305923140,-400.0,0.00039178,2]
[377233055,1754305923150,-670.37,0.00039178,2]
[377233056,1754305923161,-400.0,0.00039178,2]
[377233057,1754305923172,-1448.9,0.00039178,2]
[377233058,1754305923184,-400.0,0.00039178,2]
[377233059,1754305923195,-5776.09,0.00039178,2]
[377233060,1754305923206,-1746.78,0.00039178,2]
[377233061,1754305923217,-400.0,0.00039178,2]
[377233062,1754305923228,-1793.17,0.00039178,2]
[377233063,1754305923239,-1183.71,0.00039178,2]
[377233064,1754305923249,-400.0,0.00039178,2]
[377233065,1754305923258,-1363.88,0.00039178,2]
[377233066,1754305923269,-400.0,0.00039178,2]
[377233067,1754305923279,-6346.76,0.00039178,2]
[377233068,1754305923290,-400.0,0.00039178,2]
[377233069,1754305923300,-1230.85,0.00039178,2]
[377233070,1754305923310,-455.16,0.00039178,2]
[377233071,1754305923320,-400.0,0.00039178,2]
[377233072,1754305923330,-400.0,0.00039178,2]
[377233073,1754305923339,-941.56,0.00039178,2]
[377233074,1754305923349,-400.0,0.00039178,2]
[377233075,1754305923359,-1208.54,0.00039178,2]
[377233076,1754305923369,-400.0,0.00039178,2]
[377233077,1754305923378,-1603.12,0.00039178,2]
[377233078,1754305923388,-1266.17,0.00039178,2]
[377233079,1754305923399,-2444.62,0.00039178,2]
[377233080,1754305923410,-968.13,0.00039178,2]
[377233081,1754305923420,-400.0,0.00039178,2]
[377233082,1754305923429,-642.68,0.00039178,2]
[377233083,1754305923439,-400.0,0.00039178,2]
[377233084,1754305923448,-521.68,0.00039178,2]
[377233085,1754305923458,-400.0,0.00039178,2]
[377233086,1754305923468,-1754.23,0.00039178,2]
[377233087,1754305923478,-2358.63,0.00039178,2]
[377233088,1754305923488,-400.0,0.00039178,2]
[377233089,1754305923498,-2154.85,0.00039178,2]
[377233090,1754305923508,-312.67090032,0.00039178,2]
[377233091,1754305923518,-532.52,0.00039178,2]
[377233092,1754305923529,-403.29,0.00039178,2]
[377233093,1754305923538,-1735.99,0.00039178,2]
[377233094,1754305923549,-1686.63,0.00039178,2]
[377233095,1754305923559,-400.0,0.00039178,2]
[377233096,1754305923569,-403.11,0.00039178,2]
[377233097,1754305923580,-759.33,0.00039178,2]
[377233098,1754305923589,-1873.9,0.00039178,2]
[377233099,1754305923600,-400.0,0.00039178,2]
[377233100,1754305923610,-400.0,0.00039178,2]
[377233101,1754305923620,-1673.67,0.00039178,2]
[377233102,1754305923631,-1754.05,0.00039178,2]
[377233103,1754305923642,-914.89,0.00039178,2]
[377233104,1754305923652,-736.813336,0.00039178,2]
[377233105,1754305923662,-1464.44,0.00039178,2]
[377233106,1754305923672,-1593.33,0.00039178,2]
[377233107,1754305923682,-773.62,0.00039178,2]
[377233108,1754305923693,-2045.74,0.00039178,2]
[377233109,1754305923703,-400.0,0.00039178,2]
[377233110,1754305923713,-1378.84,0.00039178,2]
[377233111,1754305923724,-783.24,0.00039178,2]
[377233112,1754305923733,-652.46,0.00039178,2]
[377233113,1754305923744,-4332.09,0.00039178,2]
[377233114,1754305923754,-557.78,0.00039178,2]
[377233115,1754305923765,-400.0,0.00039178,2]
[377233116,1754305923777,-400.0,0.00039178,2]
[377233117,1754305923786,-400.0,0.00039178,2]
[377233118,1754305923795,-472.180256,0.00039178,2]
[377233119,1754305923805,-505.58,0.00039178,2]
[377233120,1754305923815,-752.876045,0.00039178,2]
[377233121,1754305923826,-2822.69,0.00039178,2]
[377233122,1754305923835,-1582.56,0.00039178,2]
[377233123,1754305923845,-781.05,0.00039178,2]
[377233124,1754305923855,-437.18,0.00039178,2]
[377233125,1754305923865,-1692.49,0.00039178,2]
[377233126,1754305923875,-400.0,0.00039178,2]
[377233127,1754305923885,-4257.32,0.00039178,2]
[377233128,1754305923895,-400.0,0.00039178,2]
[377233129,1754305923906,-400.0,0.00039178,2]
[377233130,1754305923917,-958.47,0.00039178,2]
[377233131,1754305923926,-8555.46,0.00039178,2]
[377233132,1754305923936,-1474.41,0.00039178,2]
[377233133,1754305923946,-12684.74,0.00039178,2]
[377233134,1754305923955,-400.0,0.00039178,2]
[377233135,1754305923965,-400.0,0.00039178,2]
[377233136,1754305923975,-8447.34,0.00039178,2]
[377233137,1754305923985,-2271.19,0.00039178,2]
[377233138,1754305923994,-1233.77,0.00039178,2]
[377233139,1754305924004,-920.62,0.00039178,2]
[377233140,1754305924015,-1370.77,0.00039178,2]
[377233141,1754305924025,-400.0,0.00039178,2]
[377233142,1754305924035,-400.0,0.00039178,2]
[377233143,1754305924045,-1817.19,0.00039178,2]
[377233144,1754305924156,-1888.39,0.00039178,2]
[377233145,1754305924167,-1907.39,0.00039178,2]
[377233146,1754305924177,-1431.25,0.00039178,2]
[377233147,1754305924187,-344.89213826,0.00039178,2]
[377233148,1754305924198,-400.0,0.00039178,2]
[377233149,1754305924208,-1147.83,0.00039178,2]
[377233150,1754305924220,-400.0,0.00039178,2]
[377233151,1754305924231,-400.0,0.00039178,2]
[377233152,1754305924241,-400.0,0.00039178,2]
[377233153,1754305924252,-400.0,0.00039178,2]
[377233154,1754305924262,-400.0,0.00039178,2]
[377233155,1754305924272,-2068.75,0.00039178,2]
[377233156,1754305924283,-400.0,0.00039178,2]
[377233157,1754305924293,-2687.79,0.00039178,2]
[377233158,1754305924303,-2214.61,0.00039178,2]
[377233159,1754305924313,-400.0,0.00039178,2]
[377233160,1754305924323,-400.0,0.00039178,2]
[377233161,1754305924332,-1614.22,0.00039178,2]
[377233162,1754305924342,-802.2,0.00039178,2]
[377233163,1754305924352,-670.02,0.00039178,2]
[377233164,1754305924361,-1475.5,0.00039178,2]
[377233165,1754305924371,-78789.54,0.00039178,2]
[377233166,1754305924381,-400.0,0.00039178,2]
[377233167,1754305924390,-400.0,0.00039178,2]
[377233168,1754305924400,-579.73,0.00039178,2]
[377233169,1754305924409,-400.0,0.00039178,2]
[377233170,1754305924418,-2169.93,0.00039178,2]
[377233171,1754305924428,-1690.87,0.00039178,2]
[377233172,1754305924438,-400.0,0.00039178,2]
[377233173,1754305924447,-1258.18,0.00039178,2]
[377233174,1754305924457,-11200.4,0.00039178,2]
[377233175,1754305924467,-1594.85,0.00039178,2]
[377233176,1754305924478,-1475.71,0.00039178,2]
[377233177,1754305924487,-1778.93,0.00039178,2]
[377233178,1754305924498,-1043.71,0.00039178,2]
[377233179,1754305924507,-400.0,0.00039178,2]
[377233180,1754305924516,-898.73,0.00039178,2]
[377233181,1754305924526,-498.32,0.00039178,2]
[377233182,1754305924536,-3118.04,0.00039178,2]
[377233183,1754305924545,-1857.39,0.00039178,2]
[377233184,1754305924555,-1556.28,0.00039178,2]
[377233185,1754305924566,-400.0,0.00039178,2]
[377233186,1754305924576,-7506.25,0.00039178,2]
[377233187,1754305924586,-285.365468,0.00039178,14]
[377233188,1754305924596,-285.365468,0.00039178,14]
[377233189,1754305924606,-1191.23,0.00039178,2]
[377233190,1754305924617,-400.0,0.00039178,2]
[377233191,1754305924627,-1349.97,0.00039178,2]
[377233192,1754305924638,-577.79,0.00039178,2]
[377233193,1754305924648,-1074.04,0.00039178,2]
[377233194,1754305924658,-3769.24,0.00039178,2]
[377233195,1754305924667,-988.14,0.00039178,2]
[377233196,1754305924677,-3095.42,0.00039178,2]
[377233197,1754305924686,-741.487238,0.00039178,14]
[377233198,1754305924695,-1741.31,0.00039178,2]
[377233199,1754305924705,-461.975391,0.00039178,14]
[377233200,1754305924714,-741.487238,0.00039178,14]
[377233201,1754305924725,-1252.42,0.00039178,2]
[377233202,1754305924735,-400.0,0.00039178,2]
[377233203,1754305924745,-1932.57,0.00039178,2]
[377233204,1754305924754,-400.0,0.00039178,2]
[377233205,1754305924763,-1985.84,0.00039178,2]
[377233206,1754305924773,-1555.06,0.00039178,2]
[377233207,1754305924784,-3383.45,0.00039178,2]
[377233208,1754305924794,-741.487238,0.00039178,14]
[377233209,1754305924806,-741.487238,0.00039178,14]
[377233210,1754305924816,-400.0,0.00039178,2]
[377233211,1754305924826,-1602.8,0.00039178,2]
[377233212,1754305924836,-3681.37,0.00039178,2]
[377233213,1754305924845,-400.0,0.00039178,2]
[377233214,1754305924855,-495.93,0.00039178,2]
[377233215,1754305924865,-461.975391,0.00039178,14]
[377233216,1754305924874,-2072.61,0.00039178,2]
[377233217,1754305924883,-1753.85,0.00039178,2]
[377233218,1754305924893,-285.365468,0.00039178,14]
[377233219,1754305924905,-285.365468,0.00039178,14]
[377233220,1754305924920,-1605.29,0.00039178,2]
[377233221,1754305924930,-400.0,0.00039178,2]
[377233222,1754305924940,-400.0,0.00039178,2]
[377233223,1754305924952,-400.0,0.00039178,2]
[377233224,1754305924961,-400.0,0.00039178,2]
[377233225,1754305924970,-1726.45,0.00039178,2]
[377233226,1754305924981,-1657.08,0.00039178,2]
[377233227,1754305924991,-683.431269,0.00039178,14]
[377233228,1754305925001,-683.431269,0.00039178,14]
[377233229,1754305925011,-2197.37,0.00039178,2]
[377233230,1754305925020,-1613.77,0.00039178,2]
[377233231,1754305925030,-400.0,0.00039178,2]
[377233232,1754305925039,-1109.72,0.00039178,2]
[377233233,1754305925049,-400.0,0.00039178,2]
[377233234,1754305925059,-400.0,0.00039178,2]
[377233235,1754305925068,-1265.39,0.00039178,2]
[377233236,1754305925078,-531.77,0.00039178,2]
[377233237,1754305925087,-400.0,0.00039178,2]
[377233238,1754305925097,-1790.09,0.00039178,2]
[377233239,1754305925107,-994.35,0.00039178,2]
[377233240,1754305925117,-683.431269,0.00039178,14]
[377233241,1754305925126,-1207.63,0.00039178,2]
[377233242,1754305925135,-683.431269,0.00039178,14]
[377233243,1754305925144,-400.0,0.00039178,2]
[377233244,1754305925154,-736.813337,0.00039178,2]
[377233245,1754305925163,-1044.0,0.00039178,2]
[377233246,1754305925173,-400.0,0.00039178,2]
[377233247,1754305925182,-1697.44,0.00039178,2]
[377233248,1754305925192,-1153.38,0.00039178,2]
[377233249,1754305925202,-472.180256,0.00039178,2]
[377233250,1754305925212,-1273.07,0.00039178,2]
[377233251,1754305925221,-400.0,0.00039178,2]
[377233252,1754305925231,-971.37,0.00039178,2]
[377233253,1754305925241,-400.0,0.00039178,2]
[377233254,1754305925251,-1518.17,0.00039178,2]
[377233255,1754305925260,-1809.15,0.00039178,2]
[377233256,1754305925270,-8777.73,0.00039178,2]
[377233257,1754305925280,-2275.44,0.00039178,2]
[377233258,1754305925289,-752.876045,0.00039178,2]
[377233259,1754305925299,-400.0,0.00039178,2]
[377233260,1754305925308,-596.6,0.00039178,2]
[377233261,1754305925318,-1037.03,0.00039178,2]
[377233262,1754305925327,-1600.04,0.00039178,2]
[377233263,1754305925337,-490.62,0.00039178,2]
[377233264,1754305925346,-6082.8,0.00039178,2]
[377233265,1754305925356,-599.54,0.00039178,2]
[377233266,1754305925365,-1213.48,0.00039178,2]
[377233267,1754305925375,-797.89,0.00039178,2]
[377233268,1754305925385,-1097.82,0.00039178,2]
[377233269,1754305925394,-400.0,0.00039178,2]
[377233270,1754305925403,-596.19,0.00039178,2]
[377233271,1754305925411,-400.0,0.00039178,2]
[377233272,1754305925421,-448.66,0.00039178,2]
[377233273,1754305925431,-10707.5,0.00039178,2]
[377233274,1754305925441,-222.763767,0.00039178,14]
[377233275,1754305925450,-4934.5,0.00039178,2]
[377233276,1754305925460,-400.0,0.00039178,2]
[377233277,1754305925470,-1936.12,0.00039178,2]
[377233278,1754305925479,-400.0,0.00039178,2]
[377233279,1754305925488,-400.0,0.00039178,2]
[377233280,1754305925498,-2188.32,0.00039178,2]
[377233281,1754305925508,-2575.64,0.00039178,2]
[377233282,1754305925518,-222.763767,0.00039178,14]
[377233283,1754305925527,-400.0,0.00039178,2]
[377233284,1754305925537,-400.0,0.00039178,2]
[377233285,1754305925546,-400.0,0.00039178,2]
[377233286,1754305925556,-1048.1,0.00039178,2]
[377233287,1754305925565,-586.94,0.00039178,2]
[377233288,1754305925574,-1283.58,0.00039178,2]
[377233289,1754305925586,-400.0,0.00039178,2]
[377233290,1754305925596,-151.0,0.00039178,14]
[377233291,1754305925614,-1614.51,0.00039178,2]
[377233292,1754305925625,-1367.27,0.00039178,2]
[377233293,1754305925635,-400.0,0.00039178,2]
[377233294,1754305925645,-400.0,0.00039178,2]
[377233295,1754305925654,-400.0,0.00039178,2]
[377233296,1754305925664,-3431.45,0.00039178,2]
[377233297,1754305925673,-400.0,0.00039178,2]
[377233298,1754305925683,-958.06,0.00039178,2]
[377233299,1754305925692,-500.49,0.00039178,2]
[377233300,1754305925702,-1400.57,0.00039178,2]
[377233301,1754305925712,-953.11,0.00039178,2]
[377233302,1754305925721,-192.01824221,0.00039178,2]
[377233303,1754305925731,-1339.76,0.00039178,2]
[377233304,1754305925741,-16704.11,0.00039178,2]
[377233305,1754305925750,-1799.3,0.00039178,2]
[377233306,1754305925759,-1254.59,0.00039178,2]
[377233307,1754305925768,-1128.88,0.00039178,2]
[377233308,1754305925777,-4814.39,0.00039178,2]
[377233309,1754305925787,-400.0,0.00039178,2]
[377233310,1754305925796,-400.0,0.00039178,2]
[377233311,1754305925806,-871.27,0.00039178,2]
[377233312,1754305925815,-1494.19,0.00039178,2]
[377233313,1754305925825,-2112.05,0.00039178,2]
[377233314,1754305925834,-1442.54,0.00039178,2]
[377233315,1754305925844,-525.6,0.00039178,2]
[377233316,1754305925853,-637.09,0.00039178,2]
[377233317,1754305925863,-400.0,0.00039178,2]
[377233318,1754305925872,-2310.1,0.00039178,2]
[377233319,1754305925882,-2192.65,0.00039178,2]
[377233320,1754305925892,-571.02,0.00039178,2]
[377233321,1754305925901,-1651.01,0.00039178,2]
[377233322,1754305925914,-3310.33,0.00039178,2]
[377233323,1754305925923,-400.0,0.00039178,2]
[377233324,1754305925933,-845.12,0.00039178,2]
[377233325,1754305925942,-533.36,0.00039178,2]
[377233326,1754305925951,-1650.75,0.00039178,2]
[377233327,1754305925961,-400.0,0.00039178,2]
[377233328,1754305925970,-781.29,0.00039178,2]
[377233329,1754305925980,-429.82,0.00039178,2]
[377233330,1754305925989,-400.0,0.00039178,2]
[377233331,1754305925999,-400.0,0.00039178,2]
[377233332,1754305926009,-62748.24,0.000392,14]
[377233333,1754305926018,-151.0,0.000392,14]
[377233334,1754305926028,-1368.617935,0.000392,14]
[377233335,1754305926037,-151.0,0.000392,14]
[377233336,1754305926046,-1368.617935,0.000392,14]
[377233337,1754305926055,-151.0,0.000392,14]
[377233338,1754305926065,-151.0,0.000392,14]
[377233339,1754305926074,-151.0,0.000392,14]
[377233340,1754305926083,-151.0,0.000392,14]
[377233341,1754305926093,-151.0,0.000392,14]
[377233342,1754305926103,-222.763767,0.000392,14]
[377233343,1754305926111,-222.763767,0.000392,14]
[377233344,1754305926121,-1000.0,0.00039221,5]
[377233345,1754305926130,-1000.0,0.00039221,5]
[377233346,1754305926139,-1000.0,0.00039221,5]
[377233347,1754305926148,-2063.57057137,0.00039239,2]
[377233348,1754305926157,-1500.0,0.00039268,5]
[377233349,1754305926167,-281.71758358,0.00039269,15]
[377233350,1754305926177,-151.0,0.00039311,14]
[377233351,1754305926186,-151.0,0.00039311,14]
[377233352,1754305926196,-151.0,0.00039311,14]
[377233353,1754305926206,-151.0,0.00039311,14]
[377233354,1754305926215,-151.0,0.00039311,14]
[377233355,1754305926224,-2588.34,0.00039311,2]
[377233356,1754305926234,-792.0,0.0003935,2]
[377233357,1754305926243,-190.87,0.00039352,120]
[377233358,1754305926252,-826.47,0.00039352,120]
[377233359,1754305926262,-714.04,0.000394,30]
[377233360,1754305926271,-500.0,0.00039441,2]
[377233361,1754305926280,-500.0,0.00039451,2]
[377233362,1754305926291,-151.0,0.00039452,14]
[377233363,1754305926300,-155.47109,0.00039452,14]
[377233364,1754305926309,-151.0,0.00039452,14]
[377233365,1754305926318,-151.0,0.00039452,14]
[377233366,1754305926327,-250.202288,0.00039452,14]
[377233367,1754305926336,-151.0,0.00039452,14]
[377233368,1754305926346,-151.0,0.00039452,14]
[377233369,1754305926355,-151.0,0.00039452,14]
[377233370,1754305926364,-151.0,0.00039452,14]
[377233371,1754305926374,-295.857563,0.00039452,14]
[377233372,1754305926383,-151.0,0.00039452,14]
[377233373,1754305926392,-151.411057,0.00039452,14]
[377233374,1754305926403,-151.610202,0.00039452,14]
[377233375,1754305926412,-151.0,0.00039452,14]
[377233376,1754305926421,-280.723601,0.00039452,14]
[377233377,1754305926430,-280.723601,0.00039452,14]
[377233378,1754305926439,-154.716262,0.00039452,14]
[377233379,1754305926449,-311.583152,0.00039452,14]
[377233380,1754305926459,-311.583152,0.00039452,14]
[377233381,1754305926471,-156.538723,0.00039452,14]
[377233382,1754305926481,-151.0,0.00039452,14]
[377233383,1754305926490,-151.0,0.00039452,14]
[377233384,1754305926500,-151.0,0.00039452,14]
[377233385,1754305926510,-151.0,0.00039452,14]
[377233386,1754305926519,-198.06212,0.00039452,14]
[377233387,1754305926528,-198.06212,0.00039452,14]
[377233388,1754305926538,-151.0,0.00039452,14]
[377233389,1754305926547,-151.0,0.00039452,14]
[377233390,1754305926556,-226.776309,0.00039452,14]
[377233391,1754305926565,-226.776309,0.00039452,14]
[377233392,1754305926575,-151.0,0.00039452,14]
[377233393,1754305926585,-151.0,0.00039452,14]
[377233394,1754305926594,-151.0,0.00039452,14]
[377233395,1754305926605,-151.0,0.00039452,14]
[377233396,1754305926614,-159.022194,0.00039452,14]
[377233397,1754305926624,-151.0,0.00039452,14]
[377233398,1754305926633,-151.0,0.00039452,14]
[377233399,1754305926642,-281.210416,0.00039452,14]
[377233400,1754305926652,-257.618581,0.00039452,14]
[377233401,1754305926662,-254.712517,0.00039452,14]
[377233402,1754305926672,-1430.243073,0.00039452,14]
[377233403,1754305926682,-400.0,0.00039452,2]
[377233404,1754305926691,-254.712517,0.00039452,14]
[377233405,1754305926700,-400.0,0.00039452,2]
[377233406,1754305926711,-1430.243073,0.00039452,14]
[377233407,1754305926720,-400.0,0.00039452,2]
[377233408,1754305926730,-295.45918977,0.00039452,2]
[377233409,1754305926740,-151.0,0.00039452,14]
[377233410,1754305926749,-298.911584,0.00039452,14]
[377233411,1754305926759,-298.911584,0.00039452,14]
[377233412,1754305926769,-151.0,0.00039452,14]
[377233413,1754305926778,-400.0,0.00039452,2]
[377233414,1754305926788,-400.0,0.00039452,2]
[377233415,1754305926797,-400.0,0.00039452,2]
[377233416,1754305926806,-204.16591417,0.00039452,2]
[377233417,1754305926815,-400.0,0.00039452,2]
[377233418,1754305926825,-400.0,0.00039452,2]
[377233419,1754305926834,-400.0,0.00039452,2]
[377233420,1754305926844,-289.16097363,0.00039452,2]
[377233421,1754305926854,-400.0,0.00039452,2]
[377233422,1754305926863,-263.95849781,0.00039452,2]
[377233423,1754305926873,-357.39915792,0.00039452,2]
[377233424,1754305926882,-400.0,0.00039452,2]
[377233425,1754305926892,-400.0,0.00039452,2]
[377233426,1754305926901,-400.0,0.00039452,2]